bitfinex/quotes_BTCUSD_20241110
["timestamp","ask_amount","ask_price","bid_price","bid_amount"]
[1731206609664,30.1637638,77333.0,77332.0,0.07338111]
[1731206610492,30.1637638,77333.0,77332.0,0.07838111]
[1731206611117,30.1637638,77333.0,77332.0,0.17838111]
[1731206611538,30.1637638,77333.0,77332.0,0.16338111]
[1731206611834,30.1637638,77333.0,77332.0,0.06338111]
[1731206612060,30.2098638,77333.0,77332.0,0.06338111]
[1731206612750,30.2098638,77333.0,77331.0,0.3]
[1731206612751,0.1522,77332.0,77331.0,0.3]
[1731206612960,0.28444102,77332.0,77331.0,0.3]
[1731206615423,0.47896201,77332.0,77331.0,0.24257812]
[1731206615648,0.26044102,77332.0,77331.0,0.24257812]
[1731206615856,0.393643,77332.0,77331.0,0.14041325]
[1731206616056,0.37205004,77332.0,77330.0,1.13298771]
[1731206616185,0.15704102,77331.0,77330.0,0.92678771]
[1731206616372,0.13224102,77331.0,77330.0,0.81418756]
[1731206616581,0.13224102,77331.0,77330.0,0.7684797]
[1731206617732,0.15524102,77331.0,77330.0,0.7684797]
[1731206618602,0.28748379,77331.0,77330.0,0.7684797]
[1731206619435,0.28748379,77331.0,77330.0,0.74395352]
[1731206619634,0.28748379,77331.0,77330.0,0.71608287]
[1731206619959,0.15524102,77331.0,77330.0,0.71608287]
[1731206626083,0.15524102,77331.0,77330.0,0.71775487]
[1731206627656,0.13124102,77331.0,77330.0,0.71775487]
[1731206631156,0.10824102,77331.0,77330.0,0.71775487]
[1731206633561,30.13397618,77333.0,77330.0,0.71775487]
[1731206634481,30.0806638,77333.0,77330.0,0.71775487]
[1731206637514,30.0806638,77333.0,77330.0,0.72275487]
[1731206637860,30.0806638,77333.0,77332.0,0.1352]
[1731206638297,30.0706638,77333.0,77332.0,0.1352]
[1731206641437,30.0706638,77333.0,77332.0,0.2452]
[1731206642985,30.0706638,77333.0,77332.0,0.37744102]
[1731206643341,30.0706638,77333.0,77332.0,0.2452]
[1731206643545,30.0706638,77333.0,77332.0,0.37840198]
[1731206643744,30.0706638,77333.0,77332.0,0.2352]
[1731206643970,30.0706638,77333.0,77332.0,0.2302]
[1731206644410,30.0466638,77333.0,77332.0,0.2302]
[1731206645538,30.0466638,77333.0,77332.0,0.2352]
[1731206645740,30.0466638,77333.0,77332.0,0.2302]
[1731206645969,30.0466638,77333.0,77332.0,0.36340198]
[1731206646366,30.0466638,77333.0,77332.0,0.36840198]
[1731206646609,30.0466638,77333.0,77332.0,0.37340198]
[1731206646992,30.0466638,77333.0,77332.0,0.37840198]
[1731206648462,30.0466638,77333.0,77332.0,0.2452]
[1731206648688,30.0466638,77333.0,77332.0,0.37840198]
[1731206649669,30.0466638,77333.0,77332.0,0.37507398]
[1731206649853,30.0466638,77333.0,77332.0,0.241872]
[1731206650055,30.0466638,77333.0,77332.0,0.231872]
[1731206650649,30.0466638,77333.0,77332.0,0.236872]
[1731206650863,30.0466638,77333.0,77332.0,0.231872]
[1731206651047,30.0466638,77333.0,77332.0,0.236872]
[1731206651273,30.0466638,77333.0,77332.0,0.231872]
[1731206651473,30.0466638,77333.0,77332.0,0.236872]
[1731206654491,30.0466638,77333.0,77332.0,0.241872]
[1731206654841,30.0466638,77333.0,77332.0,0.37507398]
[1731206655443,30.0466638,77333.0,77332.0,0.37007398]
[1731206655805,30.0466638,77333.0,77332.0,0.37507398]
[1731206657382,30.0226638,77333.0,77332.0,0.37507398]
[1731206661190,30.0226638,77333.0,77332.0,0.241872]
[1731206661629,30.0226638,77333.0,77332.0,0.236872]
[1731206662697,30.0226638,77333.0,77332.0,0.241872]
[1731206663276,30.0226638,77333.0,77332.0,0.246872]
[1731206665146,30.0226638,77333.0,77332.0,0.30039466]
[1731206665698,30.0226638,77333.0,77332.0,0.52933568]
[1731206667256,30.0226638,77333.0,77332.0,0.55521568]
[1731206667676,29.26360193,77333.0,77332.0,0.70541766]
[1731206667905,29.26360193,77333.0,77332.0,0.57221568]
[1731206668119,29.26360193,77333.0,77332.0,0.70541766]
[1731206670833,29.26360193,77333.0,77332.0,0.70505466]
[1731206671262,28.76074006,77333.0,77332.0,0.70505466]
[1731206671433,28.76074006,77333.0,77332.0,0.83918368]
[1731206671637,28.76074006,77333.0,77332.0,0.651532]
[1731206672771,28.66404006,77333.0,77332.0,0.554832]
[1731206673217,28.64004006,77333.0,77332.0,0.554832]
[1731206674532,28.64004006,77333.0,77332.0,0.42163002]
[1731206674731,28.64004006,77333.0,77332.0,0.554832]
[1731206677323,28.64004006,77333.0,77332.0,0.534832]
[1731206677535,28.64004006,77333.0,77332.0,0.554832]
[1731206677746,28.64004006,77333.0,77332.0,0.532832]
[1731206677965,28.64004006,77333.0,77332.0,0.552832]
[1731206678189,28.64004006,77333.0,77332.0,0.41463002]
[1731206678396,28.64004006,77333.0,77332.0,0.552832]
[1731206681007,28.64004006,77333.0,77332.0,0.35733002]
[1731206681173,28.64004006,77333.0,77332.0,0.27479302]
[1731206681576,28.64004006,77333.0,77332.0,0.407995]
[1731206681798,28.64004006,77333.0,77332.0,0.27479302]
[1731206682009,28.64004006,77333.0,77332.0,0.016672]
[1731206682942,28.64004006,77333.0,77332.0,0.30889302]
[1731206683364,28.64004006,77333.0,77332.0,0.40889302]
[1731206685420,28.64004006,77333.0,77332.0,0.41889302]
[1731206686196,28.55932555,77333.0,77332.0,0.41889302]
[1731206686736,28.55932555,77333.0,77332.0,0.552095]
[1731206688311,28.53532555,77333.0,77332.0,0.552095]
[1731206689281,28.53532555,77333.0,77332.0,0.554095]
[1731206691402,28.53532555,77333.0,77332.0,0.57779986]
[1731206691869,28.53532555,77333.0,77332.0,0.61573675]
[1731206692271,28.53532555,77333.0,77332.0,0.42413477]
[1731206692566,28.53532555,77333.0,77332.0,0.35143477]
[1731206692768,28.53532555,77333.0,77332.0,0.48463675]
[1731206692946,28.53532555,77333.0,77332.0,0.61373675]
[1731206693720,28.53532555,77333.0,77332.0,0.59205246]
[1731206693943,28.53532555,77333.0,77332.0,0.61577587]
[1731206694144,28.53532555,77333.0,77332.0,0.61577476]
[1731206694957,28.53532555,77333.0,77332.0,0.61377476]
[1731206695216,28.53532555,77333.0,77332.0,0.61577476]
[1731206697040,28.53532555,77333.0,77332.0,0.61582732]
[1731206697716,28.53532555,77333.0,77332.0,0.61382732]
[1731206698012,28.47721451,77333.0,77332.0,0.61382732]
[1731206698218,28.47721451,77333.0,77332.0,0.66566538]
[1731206699566,28.47721451,77333.0,77332.0,0.66766538]
[1731206700629,28.47721451,77333.0,77332.0,0.66765605]
[1731206702589,28.47721451,77333.0,77332.0,0.53245407]
[1731206702746,28.47721451,77333.0,77332.0,0.48605407]
[1731206702959,28.47721451,77333.0,77332.0,0.61925605]
[1731206703491,28.45321451,77333.0,77332.0,0.61926423]
[1731206703638,28.45321451,77333.0,77332.0,0.56742617]
[1731206704041,28.45321451,77333.0,77332.0,0.56942617]
[1731206704648,28.45321451,77333.0,77332.0,0.507695]
[1731206704900,28.45321451,77333.0,77332.0,0.56942841]
[1731206706440,28.45321451,77333.0,77332.0,0.505695]
[1731206706658,28.45321451,77333.0,77332.0,0.56743191]
[1731206707613,28.45321451,77333.0,77332.0,0.10428891]
[1731206709065,28.45321451,77333.0,77332.0,0.20428891]
[1731206709677,28.57901451,77333.0,77332.0,0.17342902]
[1731206710333,28.45321451,77333.0,77332.0,0.20430902]
[1731206710531,28.45321451,77333.0,77332.0,0.34155004]
[1731206713443,28.39509773,77333.0,77332.0,0.31065957]
[1731206713733,28.39509773,77333.0,77332.0,0.31565957]
[1731206713940,28.39509773,77333.0,77332.0,0.34153957]
[1731206714136,28.39509773,77333.0,77332.0,0.35353957]
[1731206714481,28.39509773,77333.0,77332.0,0.34353957]
[1731206714683,28.39509773,77333.0,77332.0,0.35353957]
[1731206714934,28.39509773,77333.0,77332.0,0.32565957]
[1731206715263,28.39509773,77333.0,77332.0,0.31065957]
[1731206716386,28.39509773,77333.0,77332.0,0.31069945]
[1731206717034,28.39509773,77333.0,77332.0,0.17845843]
[1731206717660,28.47359773,77333.0,77332.0,0.17845843]
[1731206718152,28.39509773,77333.0,77332.0,0.17845843]
[1731206718375,28.39509773,77333.0,77332.0,0.31069945]
[1731206718699,28.39509773,77333.0,77332.0,0.17845843]
[1731206719558,28.37109773,77333.0,77332.0,0.116672]
[1731206719764,28.37109773,77333.0,77332.0,0.17845992]
[1731206721485,28.37109773,77333.0,77332.0,0.31070094]
[1731206721693,28.37109773,77333.0,77332.0,0.36385607]
[1731206722106,28.37109773,77333.0,77332.0,0.38973607]
[1731206722447,28.37109773,77333.0,77332.0,0.33658094]
[1731206722657,28.37109773,77333.0,77332.0,0.16845992]
[1731206722854,28.37109773,77333.0,77332.0,0.17845992]
[1731206723690,28.37109773,77333.0,77332.0,0.14043658]
[1731206725260,28.37109773,77333.0,77332.0,0.2746776]
[1731206725472,28.37109773,77333.0,77332.0,0.3004976]
[1731206725901,28.37109773,77333.0,77332.0,0.2984976]
[1731206726754,28.37109773,77333.0,77332.0,0.3134976]
[1731206726954,28.37109773,77333.0,77332.0,0.3154976]
[1731206727805,28.37109773,77333.0,77332.0,0.16625658]
[1731206728015,28.37109773,77333.0,77332.0,0.3054976]
[1731206728239,28.37109773,77333.0,77332.0,0.3034976]
[1731206729834,28.62109773,77333.0,77332.0,0.3034976]
[1731206730726,28.62109773,77333.0,77332.0,0.2984976]
[1731206730978,28.62109773,77333.0,77332.0,0.16625658]
[1731206732077,28.69959773,77333.0,77332.0,0.14043658]
[1731206732518,28.67559773,77333.0,77332.0,0.14043658]
[1731206732959,28.67193107,77333.0,77332.0,0.14043658]
[1731206733922,28.59343107,77333.0,77332.0,0.14043658]
[1731206735298,28.59343107,77333.0,77332.0,0.2726776]
[1731206735539,22.05526695,77333.0,77332.0,1.47823458]
[1731206735751,21.27892688,77333.0,77332.0,1.38807704]
[1731206735962,21.04221921,77333.0,77332.0,1.39007704]
[1731206736167,21.04221921,77333.0,77332.0,1.42645402]
[1731206736885,21.04221921,77333.0,77332.0,1.39863504]
[1731206737116,21.04221921,77333.0,77332.0,1.26543306]
[1731206737360,21.04221921,77333.0,77332.0,1.53183702]
[1731206737992,20.544273,77333.0,77332.0,1.53183702]
[1731206738542,20.544273,77333.0,77332.0,1.26343306]
[1731206738753,20.53935734,77333.0,77332.0,1.39663504]
[1731206739357,20.2170581,77333.0,77332.0,1.75833702]
[1731206739583,20.2170581,77333.0,77332.0,2.08283702]
[1731206739780,20.2170581,77333.0,77332.0,2.08083702]
[1731206740812,19.5315581,77333.0,77332.0,2.08083702]
[1731206741015,19.19609885,77333.0,77332.0,2.08083702]
[1731206741216,19.19609885,77333.0,77332.0,2.08283702]
[1731206741780,19.19118319,77333.0,77332.0,2.08283702]
[1731206742219,18.87112493,77333.0,77332.0,2.08083702]
[1731206742430,18.87112493,77333.0,77332.0,1.73626502]
[1731206742647,18.87112493,77333.0,77332.0,1.60722602]
[1731206742905,18.41427959,77333.0,77332.0,2.10502301]
[1731206743113,18.31701528,77333.0,77332.0,2.2032223]
[1731206743364,18.19942362,77333.0,77332.0,1.74229735]
[1731206743576,18.19942362,77333.0,77332.0,2.00870131]
[1731206743782,18.17360362,77333.0,77332.0,2.00870131]
[1731206743995,18.12196362,77333.0,77332.0,2.00870131]
[1731206744471,18.04450362,77333.0,77332.0,1.95706131]
[1731206744919,18.01868362,77333.0,77332.0,1.93124131]
[1731206745128,17.96704362,77333.0,77332.0,1.90348533]
[1731206745362,17.74049575,77333.0,77332.0,1.86667131]
[1731206745601,17.68885575,77333.0,77332.0,1.84085131]
[1731206745829,17.25497045,77333.0,77332.0,1.84085131]
[1731206746316,17.25497045,77333.0,77332.0,1.80704981]
[1731206747614,17.25497045,77333.0,77332.0,1.88304981]
[1731206748035,16.56947045,77333.0,77332.0,1.88304981]
[1731206748278,16.47649388,77333.0,77332.0,1.88304981]
[1731206748483,16.47326678,77333.0,77332.0,1.88304981]
[1731206749803,16.47326678,77333.0,77332.0,6.90848578]
[1731206750050,16.47326678,77333.0,77332.0,7.74587316]
[1731206750051,15.45040339,77333.0,77332.0,7.74587316]
[1731206750256,15.36909609,77333.0,77332.0,7.55135217]
[1731206750489,15.32077899,77333.0,77332.0,7.55135217]
[1731206750936,15.11758265,77333.0,77332.0,7.55135217]
[1731206751397,15.11758265,77333.0,77332.0,7.55302417]
[1731206752547,15.11369788,77333.0,77332.0,7.55302417]
[1731206753173,14.82852786,77333.0,77332.0,7.55302417]
[1731206753461,14.81069157,77333.0,77332.0,7.55302417]
[1731206753940,14.79218543,77333.0,77332.0,7.55302417]
[1731206754152,14.77293912,77333.0,77332.0,7.55302417]
[1731206754828,14.47850575,77333.0,77332.0,7.55302417]
[1731206755039,14.36956533,77333.0,77332.0,8.05302417]
[1731206755487,14.36956533,77333.0,77332.0,8.02979421]
[1731206755697,14.36956533,77333.0,77332.0,8.03379421]
[1731206756618,14.36956533,77333.0,77332.0,8.16603523]
[1731206756972,14.34935533,77333.0,77332.0,8.16603523]
[1731206758897,13.89548724,77333.0,77332.0,8.1317001]
[1731206759112,13.82678973,77333.0,77332.0,8.12117662]
[1731206759997,13.72237182,77333.0,77332.0,8.08324227]
[1731206760186,13.7188155,77333.0,77332.0,8.08324227]
[1731206760909,13.7188155,77333.0,77332.0,8.47118227]
[1731206761752,13.7188155,77333.0,77332.0,8.20477831]
[1731206761957,12.89589537,77333.0,77332.0,8.47118227]
[1731206762380,12.86962402,77333.0,77332.0,8.43948162]
[1731206762583,12.84562402,77333.0,77332.0,8.43948162]
[1731206763210,12.84562402,77333.0,77332.0,8.44243324]
[1731206763425,12.84314299,77333.0,77332.0,8.44243324]
[1731206763636,12.83507596,77333.0,77332.0,8.44243324]
[1731206764675,12.14957596,77333.0,77332.0,8.44243324]
[1731206765328,12.14957596,77333.0,77332.0,8.17602928]
[1731206765531,12.14957596,77333.0,77332.0,9.09643324]
[1731206765759,12.06894249,77333.0,77332.0,9.11999303]
[1731206766388,12.06894249,77333.0,77332.0,8.53917303]
[1731206766558,12.06894249,77333.0,77332.0,8.54317303]
[1731206766778,12.06894249,77333.0,77332.0,8.51961324]
[1731206768007,12.06894249,77333.0,77332.0,8.25320928]
[1731206768201,10.37008728,77333.0,77332.0,8.51961324]
[1731206768391,10.21457613,77333.0,77332.0,8.44868724]
[1731206768992,10.21457613,77333.0,77332.0,7.74193788]
[1731206769165,10.21457613,77333.0,77332.0,8.50193788]
[1731206769860,10.21267613,77333.0,77332.0,8.23553392]
[1731206770092,9.9533896,77333.0,77332.0,8.50193788]
[1731206770527,9.2678896,77333.0,77332.0,8.50193788]
[1731206771465,9.2678896,77333.0,77332.0,7.6047359]
[1731206771647,8.86674296,77333.0,77332.0,8.49793788]
[1731206771827,8.86674296,77333.0,77332.0,8.50193788]
[1731206772226,8.84092296,77333.0,77332.0,8.50193788]
[1731206772443,8.84092296,77333.0,77332.0,8.49793788]
[1731206772902,8.84092296,77333.0,77332.0,8.50193788]
[1731206773226,8.84092296,77333.0,77332.0,8.21553392]
[1731206773383,8.84092296,77333.0,77332.0,8.50193788]
[1731206774002,8.84092296,77333.0,77332.0,8.23553392]
[1731206774356,8.84092296,77333.0,77332.0,8.50193788]
[1731206774610,8.84092296,77333.0,77332.0,8.2751359]
[1731206774843,8.84092296,77333.0,77332.0,8.19881272]
[1731206775049,8.84092296,77333.0,77332.0,7.54481272]
[1731206775267,8.84092296,77333.0,77332.0,7.12523376]
[1731206775482,8.84092296,77333.0,77332.0,7.50843574]
[1731206775965,8.76026367,77333.0,77332.0,7.48843574]
[1731206776171,8.76026367,77333.0,77332.0,6.68843574]
[1731206776398,8.76026367,77333.0,77332.0,6.70843574]
[1731206776858,8.76026367,77333.0,77332.0,6.68475892]
[1731206777505,8.73626367,77333.0,77332.0,6.76475892]
[1731206777714,8.73626367,77333.0,77332.0,6.63155694]
[1731206777929,8.81446367,77333.0,77332.0,6.75225448]
[1731206778138,8.81446367,77333.0,77332.0,6.68785669]
[1731206778360,8.81446367,77333.0,77332.0,6.55465471]
[1731206779705,8.81446367,77333.0,77332.0,6.6190525]
[1731206780131,8.81446367,77333.0,77332.0,6.45465471]
[1731206780339,8.86406367,77333.0,77332.0,2.83201009]
[1731206780587,8.86406367,77333.0,77332.0,2.33201009]
[1731206780804,8.86406367,77333.0,77332.0,2.58201009]
[1731206781614,8.86406367,77333.0,77332.0,2.68201009]
[1731206783811,8.21875867,77333.0,77332.0,2.68201009]
[1731206784223,7.57345367,77333.0,77332.0,2.68201009]
[1731206784668,7.57345367,77333.0,77332.0,2.62875945]
[1731206784901,7.0705918,77333.0,77332.0,2.62875945]
[1731206785391,7.0705918,77333.0,77332.0,2.63043145]
[1731206785599,6.7852205,77333.0,77332.0,2.69482924]
[1731206785828,6.7852205,77333.0,77332.0,2.72064924]
[1731206785829,6.37273354,77333.0,77332.0,2.72064924]
[1731206786039,6.37273354,77333.0,77332.0,3.52064924]
[1731206786502,6.37273354,77333.0,77332.0,3.26064924]
[1731206786707,6.37273354,77333.0,77332.0,4.02064924]
[1731206787767,6.03235863,77333.0,77332.0,4.02064924]
[1731206787975,5.86987167,77333.0,77332.0,4.02064924]
[1731206788184,5.86987167,77333.0,77332.0,4.05696068]
[1731206788397,5.71230037,77333.0,77332.0,4.05696068]
[1731206788634,5.54981341,77333.0,77332.0,4.05696068]
[1731206790727,5.36247369,77333.0,77332.0,4.05696068]
[1731206790941,0.0781,77349.0,77348.0,1.019]
[1731206790942,0.0004,77349.0,77348.0,1.019]
[1731206791089,0.17559443,77353.0,77352.0,0.09802779]
[1731206791291,0.17559443,77353.0,77352.0,0.55408102]
[1731206791506,0.0777,77359.0,77353.0,0.034]
[1731206791696,0.0777,77359.0,77353.0,5.66933561]
[1731206791892,0.0777,77359.0,77355.0,0.034]
[1731206792133,0.0777,77359.0,77355.0,5.60467402]
[1731206792572,0.028613,77359.0,77358.0,1.05982]
[1731206792796,0.028613,77359.0,77358.0,6.76300755]
[1731206793007,0.028613,77359.0,77358.0,6.86300755]
[1731206793727,0.028613,77359.0,77358.0,6.90944055]
[1731206794338,0.028613,77359.0,77358.0,6.94559867]
[1731206794755,0.046433,77367.0,77366.0,0.90982]
[1731206794952,0.046433,77367.0,77366.0,6.51135567]
[1731206795574,0.122233,77367.0,77366.0,2.96114455]
[1731206795952,0.107233,77367.0,77366.0,2.99731138]
[1731206796497,0.107233,77367.0,77366.0,2.22531138]
[1731206796807,0.107233,77367.0,77366.0,2.74531138]
[1731206797020,0.107233,77367.0,77366.0,2.34895983]
[1731206797219,0.107233,77367.0,77366.0,1.18701383]
[1731206797417,0.092233,77367.0,77366.0,1.154985]
[1731206797824,0.092233,77367.0,77366.0,1.152985]
[1731206798028,0.092233,77367.0,77366.0,1.28750853]
[1731206799018,0.092233,77367.0,77366.0,1.31111397]
[1731206799420,0.092233,77367.0,77366.0,1.17859044]
[1731206799809,0.092233,77367.0,77366.0,1.44335499]
[1731206800015,0.092233,77367.0,77366.0,1.80751955]
[1731206800240,0.092233,77367.0,77366.0,1.83115137]
[1731206801960,0.092233,77367.0,77366.0,1.80754499]
[1731206802369,0.092233,77367.0,77366.0,2.05754499]
[1731206802573,0.066413,77367.0,77366.0,2.05754499]
[1731206803001,0.066413,77367.0,77366.0,2.0811547]
[1731206803170,0.066413,77367.0,77366.0,2.0831547]
[1731206803599,0.066413,77367.0,77366.0,2.1347837]
[1731206803955,0.066413,77367.0,77366.0,2.11117399]
[1731206804271,0.066413,77367.0,77366.0,6.66875999]
[1731206804454,0.066413,77367.0,77366.0,6.73958133]
[1731206805375,0.06547408,77367.0,77366.0,6.73958133]
[1731206806080,0.06547408,77367.0,77366.0,6.76318391]
[1731206806325,0.06547408,77367.0,77366.0,6.76118391]
[1731206806496,0.001132,77369.0,77367.0,0.05982]
[1731206806701,0.19565299,77369.0,77367.0,5.86105021]
[1731206807034,0.001132,77369.0,77367.0,5.96997116]
[1731206807879,0.001132,77369.0,77367.0,6.71997116]
[1731206808417,0.09581046,77368.0,77367.0,6.58744763]
[1731206809106,0.07181046,77368.0,77367.0,6.58744763]
[1731206810504,0.07181046,77368.0,77367.0,6.33544763]
[1731206810699,0.12141046,77368.0,77367.0,3.61846863]
[1731206811163,0.12141046,77368.0,77367.0,3.67216986]
[1731206812151,0.12141046,77368.0,77367.0,3.89834986]
[1731206812808,0.12141046,77368.0,77367.0,3.84464863]
[1731206815052,0.12141046,77368.0,77367.0,6.56162763]
[1731206815846,0.12141046,77368.0,77367.0,6.31162763]
[1731206816038,0.001132,77369.0,77368.0,0.534]
[1731206816237,0.001132,77369.0,77368.0,5.42386763]
[1731206816480,0.001132,77369.0,77368.0,6.21104953]
[1731206817084,0.001132,77369.0,77368.0,6.20904953]
[1731206818090,0.001132,77369.0,77368.0,6.17186763]
[1731206818260,0.001132,77369.0,77368.0,5.92186763]
[1731206818607,0.001132,77369.0,77368.0,6.17186763]
[1731206819335,0.076432,77369.0,77368.0,6.17186763]
[1731206820676,0.076432,77369.0,77368.0,2.68119963]
[1731206821572,0.001132,77369.0,77368.0,2.97038153]
[1731206821693,0.001132,77369.0,77368.0,3.22038153]
[1731206821890,0.0487,77373.0,77369.0,0.134]
[1731206822136,8.84974013,77370.0,77369.0,4.53215929]
[1731206822336,8.84974013,77370.0,77369.0,4.62495049]
[1731206822755,8.82574013,77370.0,77369.0,4.75744945]
[1731206823516,8.82574013,77370.0,77369.0,2.09532145]
[1731206823714,8.82574013,77370.0,77369.0,2.02484545]
[1731206824857,8.82574013,77370.0,77369.0,1.89234649]
[1731206825064,8.90104013,77370.0,77369.0,0.53925347]
[1731206825275,8.90104013,77370.0,77369.0,0.80399345]
[1731206825684,8.90104013,77370.0,77369.0,0.39612545]
[1731206825883,8.90104013,77370.0,77369.0,3.14498245]
[1731206826095,8.82039066,77370.0,77369.0,3.16868462]
[1731206826304,8.82039066,77370.0,77369.0,3.14498245]
[1731206826511,8.82039066,77370.0,77369.0,3.16868268]
[1731206827151,8.82039066,77370.0,77369.0,3.26868268]
[1731206827795,8.82039066,77370.0,77369.0,3.13644166]
[1731206829198,8.82039066,77370.0,77369.0,2.43226866]
[1731206829825,8.82039066,77370.0,77369.0,2.2997697]
[1731206830035,8.82039066,77370.0,77369.0,0.2550857]
[1731206830246,8.82039066,77370.0,77369.0,0.6087967]
[1731206830518,8.86909066,77370.0,77369.0,0.1400857]
[1731206830728,8.86909066,77370.0,77369.0,0.0119857]
[1731206830896,8.86909066,77370.0,77367.0,1.49426]
[1731206830897,8.87733168,77370.0,77367.0,1.1065]
[1731206831112,0.13224102,77369.0,77366.0,0.5435]
[1731206831916,0.0753,77368.0,77365.0,1.26263609]
[1731206832138,0.13224102,77367.0,77364.0,1.0662]
[1731206833869,0.13224102,77367.0,77366.0,0.001672]
[1731206834429,0.13724102,77367.0,77366.0,0.001672]
[1731206834633,0.13724102,77367.0,77364.0,0.9351823]
[1731206834634,0.005,77365.0,77364.0,0.9351823]
[1731206834836,0.26973998,77365.0,77364.0,0.9351823]
[1731206835054,0.26973998,77365.0,77364.0,0.88343426]
[1731206836098,0.27973998,77365.0,77364.0,0.81097407]
[1731206836378,0.28173998,77365.0,77364.0,0.81097407]
[1731206836581,0.017,77364.0,77363.0,2.22015894]
[1731206836785,0.14924102,77364.0,77363.0,2.22015894]
[1731206838221,0.12524102,77364.0,77363.0,2.22015894]
[1731206838428,0.12524102,77364.0,77363.0,2.18007068]
[1731206840395,0.12524102,77364.0,77363.0,2.23375011]
[1731206842163,8.74592666,77370.0,77369.0,0.01]
[1731206842384,8.67380281,77370.0,77369.0,0.01]
[1731206842587,8.80604383,77370.0,77369.0,0.01]
[1731206842954,8.80604383,77370.0,77369.0,0.03354477]
[1731206843159,8.80604383,77370.0,77369.0,0.02854477]
[1731206843362,8.80604383,77370.0,77369.0,0.03354477]
[1731206845020,8.80604383,77370.0,77369.0,0.03554477]
[1731206845195,8.80604383,77370.0,77369.0,0.03354477]
[1731206846181,8.67380281,77370.0,77369.0,0.04054477]
[1731206846387,8.67380281,77370.0,77369.0,0.117]
[1731206846613,8.67380281,77370.0,77369.0,0.14054531]
[1731206846813,8.67380281,77370.0,77369.0,0.13854531]
[1731206847223,8.80604383,77370.0,77369.0,0.03354531]
[1731206847589,8.80604383,77370.0,77369.0,0.02854531]
[1731206847990,8.80604383,77370.0,77368.0,2.18007068]
[1731206848293,0.13224102,77369.0,77368.0,2.18007068]
[1731206851953,0.32676201,77369.0,77368.0,2.15771644]
[1731206852157,0.13224102,77369.0,77368.0,2.15771644]
[1731206852905,0.23224102,77369.0,77368.0,2.09551071]
[1731206853109,0.32454102,77369.0,77368.0,2.09551071]
[1731206853310,0.32454102,77369.0,77368.0,0.55110551]
[1731206853520,0.123,77368.0,77330.0,0.001672]
[1731206853703,0.123,77368.0,77355.0,0.19452099]
[1731206854002,0.123,77368.0,77330.0,0.001672]
[1731206854003,0.13224102,77356.0,77330.0,0.001672]
[1731206854210,0.13249896,77339.0,77327.0,0.19452099]
[1731206854752,0.13224102,77337.0,77303.0,0.13249896]
[1731206855011,0.19452099,77335.0,77315.0,0.05226437]
[1731206855174,0.19452099,77335.0,77307.0,0.001672]
[1731206855175,0.13224102,77334.0,77307.0,0.001672]
[1731206855533,0.19452099,77327.0,77307.0,0.001672]
[1731206855737,0.13224102,77326.0,77307.0,0.001672]
[1731206855941,0.19452099,77319.0,77307.0,0.001672]
[1731206856968,0.19452099,77319.0,77308.0,0.20131346]
[1731206857203,0.19452099,77319.0,77309.0,0.1479]
[1731206857336,0.13224102,77318.0,77309.0,0.1479]
[1731206857960,0.13224102,77318.0,77307.0,0.05499561]
[1731206858704,0.19452099,77327.0,77315.0,0.20131346]
[1731206858903,0.19452099,77318.0,77315.0,0.20131346]
[1731206859062,0.13224102,77326.0,77315.0,0.20131346]
[1731206859676,0.13224102,77326.0,77315.0,0.24598747]
[1731206860117,0.13224102,77326.0,77316.0,0.12363823]
[1731206860383,0.13224102,77326.0,77317.0,0.02363823]
[1731206860585,0.13224102,77326.0,77318.0,0.02363823]
[1731206860890,0.13224102,77326.0,77319.0,0.02363823]
[1731206861083,0.19452099,77325.0,77320.0,0.02363823]
[1731206861280,0.13224102,77324.0,77321.0,0.02363823]
[1731206861423,0.13224102,77324.0,77316.0,0.05202802]
[1731206861424,0.13224102,77324.0,77322.0,0.02363823]
[1731206861627,0.13224102,77324.0,77323.0,0.02363823]
[1731206863392,0.13724102,77324.0,77323.0,0.02363823]
[1731206864404,0.14224102,77324.0,77323.0,0.02363823]
[1731206864618,0.14724102,77324.0,77323.0,0.02363823]
[1731206865493,0.14724102,77324.0,77323.0,0.0293753]
[1731206865714,0.14724102,77324.0,77323.0,0.02363823]
[1731206866387,0.005,77318.0,77314.0,0.05284044]
[1731206866590,0.13224102,77315.0,77307.0,0.001672]
[1731206866820,0.13224102,77313.0,77308.0,0.02360924]
[1731206867040,0.13224102,77312.0,77309.0,0.02360924]
[1731206867267,0.19952099,77311.0,77310.0,0.02582]
[1731206867436,0.005,77311.0,77310.0,0.02360924]
[1731206867784,0.005,77311.0,77310.0,0.02937936]
[1731206868389,0.13724102,77311.0,77310.0,0.02937936]
[1731206869045,0.13724102,77311.0,77310.0,0.05519936]
[1731206870569,0.11324102,77311.0,77310.0,0.04942924]
[1731206872968,0.005,77310.0,77307.0,0.001672]
[1731206873187,0.13224102,77309.0,77308.0,0.04938704]
[1731206873386,0.13224102,77309.0,77308.0,0.02582]
[1731206873598,0.13224102,77309.0,77308.0,0.04938704]
[1731206873815,0.13210262,77309.0,77308.0,0.04938704]
[1731206876332,0.13210262,77309.0,77308.0,0.04940449]
[1731206880063,0.13210262,77309.0,77308.0,0.04946739]
[1731206880264,0.14710262,77309.0,77308.0,0.04946739]
[1731206881796,0.14710262,77309.0,77308.0,0.02364739]
[1731206882251,0.14710262,77309.0,77308.0,0.02532139]
[1731206883227,0.14910262,77309.0,77308.0,0.02532139]
[1731206883750,0.12310262,77309.0,77308.0,0.02532139]
[1731206884694,0.1623559,77286.0,77279.0,0.00167]
[1731206884931,0.1773559,77280.0,77279.0,0.00167]
[1731206885139,0.015,77280.0,77279.0,0.00167]
[1731206886197,0.14724102,77280.0,77279.0,0.00167]
[1731206886611,0.015,77279.0,77272.0,0.02582]
[1731206886816,0.005,77266.0,77253.0,0.001464]
[1731206887019,0.005,77247.0,77235.0,0.082]
[1731206887272,0.12633305,77244.0,77235.0,0.082]
[1731206887863,0.19452099,77243.0,77235.0,0.082]
[1731206888021,0.13224102,77242.0,77235.0,0.082]
[1731206888670,0.005,77238.0,77235.0,0.082]
[1731206888911,0.13224102,77237.0,77235.0,0.082]
[1731206889270,0.13224102,77237.0,77232.0,0.10104487]
[1731206889271,0.005,77234.0,77232.0,0.10104487]
[1731206889478,0.13224102,77233.0,77227.0,0.05343821]
[1731206889811,0.13224102,77233.0,77226.0,0.24666372]
[1731206890232,0.13224102,77233.0,77219.0,0.24666372]
[1731206890233,0.19452099,77232.0,77219.0,0.24666372]
[1731206890474,0.13224102,77231.0,77219.0,0.24666372]
[1731206890596,0.13224102,77231.0,77220.0,0.1]
[1731206891272,0.19452099,77224.0,77220.0,0.1]
[1731206891479,0.13224102,77223.0,77220.0,0.1]
[1731206892861,0.19452099,77232.0,77220.0,0.1]
[1731206893068,0.13224102,77231.0,77230.0,0.24666372]
[1731206893572,0.13224102,77231.0,77223.0,0.24666372]